bitfinex/quotes_SOLUSD_20260211
["timestamp","ask_amount","ask_price","bid_price","bid_amount"]
[1770837350906,2.76975633,80.149,80.131,12.47956471]
[1770837351108,55.58975633,80.167,80.132,2.77555]
[1770837351301,2.76975633,80.167,80.132,2.77555]
[1770837352108,2.76975633,80.167,80.134,2.77555]
[1770837352310,12.47400471,80.167,80.134,2.77555]
[1770837352622,2.76975633,80.166,80.134,2.77555]
[1770837352822,2.76975633,80.159,80.133,12.47925324]
[1770837352999,2.76975633,80.139,80.1,2.97555]
[1770837353315,12.80398733,80.15,80.111,2.77555]
[1770837353521,2.76975633,80.154,80.121,2.77555]
[1770837353702,2.76975633,80.149,80.111,2.77555]
[1770837353891,2.76975633,80.139,80.111,2.77555]
[1770837354098,2.76975633,80.137,80.101,2.77555]
[1770837354515,2.76975633,80.129,80.1,0.2]
[1770837354721,43.6746612,80.138,80.1,0.2]
[1770837354722,2.76975633,80.119,80.1,0.2]
[1770837355019,43.6746612,80.138,80.102,2.77555]
[1770837355020,2.76975633,80.137,80.102,2.77555]
[1770837355501,2.76975633,80.129,80.1,0.2]
[1770837355701,2.76975633,80.119,80.1,0.2]
[1770837355902,2.76975633,80.137,80.102,2.77555]
[1770837356105,52.8,80.138,80.113,2.77555]
[1770837356413,12.47863034,80.137,80.113,2.77555]
[1770837356611,12.47739897,80.145,80.113,2.77555]
[1770837357120,2.76975633,80.148,80.121,2.77555]
[1770837358014,2.76975633,80.147,80.113,2.77555]
[1770837358818,2.76975633,80.147,80.12,12.80398733]
[1770837359006,2.76975633,80.147,80.121,2.77555]
[1770837359615,2.76975633,80.167,80.131,2.77555]
[1770837360319,2.76975633,80.159,80.131,2.77555]
[1770837360621,52.84,80.202,80.118,2.77555]
[1770837360815,12.46742884,80.209,80.171,2.77555]
[1770837361016,12.80398733,80.22,80.181,2.77555]
[1770837361217,12.46587466,80.219,80.181,2.77555]
[1770837361834,52.84,80.222,80.191,2.77555]
[1770837362009,52.84,80.222,80.2,12.80398733]
[1770837362712,12.46199092,80.244,80.211,2.77555]
[1770837362907,12.46199092,80.244,80.171,4.61729252]
[1770837362908,2.76975633,80.257,80.221,2.77555]
[1770837364216,2.76975633,80.249,80.2,2.77555]
[1770837364421,2.76975633,80.249,80.21,12.80398733]
[1770837364628,52.86,80.248,80.22,15.57953733]
[1770837364921,2.76975633,80.267,80.231,2.77555]
[1770837365104,2.76975633,80.259,80.221,2.77555]
[1770837365309,2.76975633,80.249,80.211,2.77555]
[1770837366027,2.76975633,80.239,80.211,2.77555]
[1770837366227,2.76975633,80.238,80.202,15.24406699]
[1770837366429,2.76975633,80.238,80.181,4.61729252]
[1770837366430,2.76975633,80.229,80.191,2.77555]
[1770837366620,2.76975633,80.229,80.201,2.77555]
[1770837367827,2.76975633,80.236,80.201,2.77555]
[1770837368206,2.76975633,80.229,80.2,12.81027126]
[1770837368412,2.76975633,80.229,80.2,15.58582126]
[1770837368816,52.84,80.237,80.21,12.81027126]
[1770837369012,12.81027126,80.25,80.21,12.81027126]
[1770837369013,2.76975633,80.249,80.211,2.77555]
[1770837369210,52.84,80.248,80.211,2.77555]
[1770837369417,2.76975633,80.247,80.211,2.77555]
[1770837369618,5.36086188,80.274,80.193,43.64470713]
[1770837369619,2.76975633,80.26,80.231,2.77555]
[1770837369828,55.60975633,80.267,80.231,2.77555]
[1770837370018,2.76975633,80.265,80.231,2.77555]
[1770837370221,12.45888567,80.264,80.232,12.46385482]
[1770837370432,2.76975633,80.263,80.232,12.46385482]
[1770837370633,12.81027126,80.26,80.227,12.46448478]
[1770837370834,2.76975633,80.249,80.211,2.77555]
[1770837371038,52.86,80.255,80.23,12.81027126]
[1770837371916,2.76975633,80.268,80.24,12.81027126]
[1770837372213,2.76975633,80.259,80.23,15.58582126]
[1770837372418,2.76975633,80.259,80.231,12.46401017]
[1770837372811,2.76975633,80.257,80.222,12.46530786]
[1770837373030,2.76975633,80.255,80.221,12.46556387]
[1770837374135,2.76975633,80.255,80.23,12.81027126]
[1770837374319,2.76975633,80.254,80.23,12.81027126]
[1770837374516,2.76975633,80.254,80.221,2.77555]
[1770837374847,2.76975633,80.254,80.211,43.63491291]
[1770837374848,52.88,80.264,80.241,2.77555]
[1770837375512,2.76975633,80.267,80.241,2.77555]
[1770837375717,12.45857523,80.266,80.241,2.77555]
[1770837376730,2.76975633,80.265,80.23,12.81027126]
[1770837376934,2.76975633,80.249,80.22,12.81027126]
[1770837377432,2.76975633,80.249,80.221,2.77555]
[1770837377740,12.46059337,80.253,80.222,12.46540849]
[1770837377933,15.2303497,80.253,80.222,12.46540849]
[1770837378243,2.76975633,80.249,80.22,12.81027126]
[1770837378418,2.76975633,80.239,80.2,12.81027126]
[1770837378735,52.92,80.244,80.211,2.77555]
[1770837379241,2.76975633,80.243,80.211,2.77555]
[1770837379820,2.76975633,80.239,80.2,12.81027126]
[1770837380134,2.76975633,80.237,80.2,12.81027126]
[1770837380529,2.76975633,80.237,80.21,12.81027126]
[1770837380735,52.92,80.241,80.22,12.81027126]
[1770837381619,3.02691793,80.259,80.23,12.81027126]
[1770837381830,3.02691793,80.259,80.231,15.41910912]
[1770837381831,12.46010709,80.257,80.231,15.41910912]
[1770837382045,3.02691793,80.267,80.24,12.81027126]
[1770837382226,3.02691793,80.267,80.232,2.95518172]
[1770837382428,3.02691793,80.265,80.24,12.81027126]
[1770837383443,12.45888567,80.264,80.24,12.81027126]
[1770837384144,52.96,80.263,80.24,12.81027126]
[1770837384943,3.02691793,80.262,80.23,25.27441889]
[1770837385122,3.02691793,80.262,80.231,2.95518172]
[1770837385329,3.02691793,80.262,80.24,12.81027126]
[1770837385748,52.98,80.261,80.24,12.81027126]
[1770837386048,52.98,80.26,80.233,2.95518172]
[1770837386843,12.45454092,80.292,80.251,2.95518172]
[1770837387021,53.0,80.297,80.261,2.93069237]
[1770837387022,12.45438581,80.293,80.261,2.93069237]
[1770837387233,12.45438581,80.293,80.26,12.81027126]
[1770837387234,0.2,80.31,80.281,2.93069237]
[1770837387546,0.2,80.31,80.293,2.93069237]
[1770837388245,2.91225894,80.343,80.293,2.93069237]
[1770837388437,2.91225894,80.343,80.311,2.93069237]
[1770837388645,12.91027126,80.36,80.292,105.86359785]
[1770837388646,0.1,80.36,80.331,2.93069237]
[1770837388822,2.91225894,80.358,80.311,2.93069237]
[1770837389027,2.91225894,80.349,80.311,2.93069237]
[1770837389723,2.91225894,80.349,80.31,12.81027126]
[1770837389724,2.91225894,80.349,80.313,2.93069237]
[1770837389939,12.4458605,80.348,80.313,2.93069237]
[1770837390137,2.91225894,80.347,80.313,2.93069237]
[1770837390844,2.91225894,80.347,80.309,2.93069237]
[1770837391149,12.44585897,80.349,80.301,12.45314504]
[1770837391150,2.91225894,80.339,80.301,12.45314504]
[1770837391646,2.91225894,80.329,80.301,12.45314504]
[1770837391827,2.91225894,80.329,80.292,2.93069237]
[1770837392224,2.91225894,80.329,80.3,15.74096363]
[1770837392423,65.40755465,80.338,80.301,2.93069237]
[1770837392624,52.96,80.338,80.301,2.93069237]
[1770837392847,52.96,80.338,80.311,2.93069237]
[1770837393024,52.96,80.338,80.291,46.52212851]
[1770837393025,12.81027126,80.33,80.291,46.52212851]
[1770837393220,12.81027126,80.32,80.284,12.45563849]
[1770837393420,52.96,80.319,80.284,12.45563849]
[1770837393642,30.0,80.316,80.284,12.45563849]
[1770837393840,12.81027126,80.31,80.284,12.45563849]
[1770837394040,12.81027126,80.3,80.27,12.45788017]
[1770837394241,12.81027126,80.31,80.271,2.93069237]
[1770837394548,12.81027126,80.29,80.262,12.45919613]
[1770837394844,43.57841,80.315,80.231,43.62403559]
[1770837394845,2.91225894,80.269,80.231,43.62403559]
[1770837395038,4.61729252,80.311,80.231,43.62403559]
[1770837395039,12.81027126,80.25,80.231,12.46401017]
[1770837395342,12.81027126,80.25,80.224,12.46498548]
[1770837395743,12.81027126,80.25,80.219,12.46576211]
[1770837395926,12.81027126,80.24,80.219,12.46576211]
[1770837396350,12.81027126,80.24,80.207,2.93069237]
[1770837396548,12.81027126,80.23,80.207,2.93069237]
[1770837396731,2.91225894,80.239,80.207,2.93069237]
[1770837396927,12.81027126,80.24,80.207,2.93069237]
[1770837397348,31.15095044,80.255,80.206,43.63763308]
[1770837397349,12.81027126,80.23,80.206,12.46789516]
[1770837397545,2.91225894,80.239,80.207,2.93069237]
[1770837397843,2.91225894,80.229,80.202,12.46850405]
[1770837398244,2.91225894,80.229,80.195,2.93069237]
[1770837398544,12.81027126,80.23,80.195,2.93069237]
[1770837399737,12.81027126,80.22,80.192,2.93069237]
[1770837401050,15.37657982,80.229,80.192,2.93069237]
[1770837401051,52.94,80.237,80.192,2.93069237]
[1770837401251,12.81027126,80.24,80.192,2.93069237]
[1770837401846,12.81027126,80.24,80.194,2.93069237]
[1770837402049,2.91225894,80.239,80.194,2.93069237]
[1770837402362,12.81027126,80.23,80.194,2.93069237]
[1770837402654,2.91225894,80.239,80.194,2.93069237]
[1770837402844,12.81027126,80.23,80.194,2.93069237]
[1770837403048,2.91225894,80.219,80.188,12.47058901]
[1770837403243,2.91225894,80.219,80.188,15.40128138]
[1770837403844,12.81027126,80.21,80.18,2.93069237]
[1770837404247,12.81027126,80.2,80.17,2.93069237]
[1770837404839,12.81027126,80.19,80.161,43.66212995]
[1770837405039,2.91225894,80.199,80.162,2.93069237]
[1770837405246,12.81027126,80.19,80.162,2.93069237]
[1770837405451,2.91225894,80.189,80.161,12.47489427]
[1770837405655,12.81027126,80.18,80.161,12.47489427]
[1770837405853,12.81027126,80.17,80.147,31.19230784]
[1770837406050,12.81027126,80.16,80.13,48.16]
[1770837406262,2.91225894,80.159,80.131,15.41025708]
[1770837406641,12.81027126,80.16,80.132,2.93069237]
[1770837407155,65.75027126,80.17,80.132,2.93069237]
[1770837407358,12.81027126,80.15,80.132,2.93069237]
[1770837407659,12.81027126,80.16,80.132,2.93069237]
[1770837407858,12.81027126,80.15,80.123,12.48081075]
[1770837408060,12.81027126,80.15,80.124,2.93069237]
[1770837408357,2.91225894,80.159,80.124,2.93069237]
[1770837409061,12.81027126,80.17,80.124,2.93069237]
[1770837409653,12.81027126,80.16,80.124,2.93069237]
[1770837409846,12.81027126,80.16,80.126,2.93069237]
[1770837410043,2.91225894,80.159,80.126,2.93069237]
[1770837410253,52.94,80.167,80.126,2.93069237]
[1770837410448,12.81027126,80.17,80.126,2.93069237]
[1770837410842,2.91225894,80.179,80.129,2.94014201]
[1770837411445,2.79221106,80.2,80.151,2.94014201]
[1770837411645,12.81027126,80.21,80.152,48.22]
[1770837411646,2.79221106,80.208,80.152,48.22]
[1770837411847,2.79221106,80.208,80.153,2.94014201]
[1770837412271,12.81027126,80.2,80.155,2.94014201]
[1770837412568,2.79221106,80.189,80.155,2.94014201]
[1770837413651,12.81027126,80.18,80.154,12.47598373]
[1770837413859,15.60248232,80.18,80.154,12.47598373]
[1770837414261,12.81027126,80.19,80.155,2.94014201]
[1770837414563,2.79221106,80.189,80.156,15.41581444]
[1770837414975,2.79221106,80.189,80.156,46.60499553]
[1770837415273,2.79221106,80.199,80.157,2.94014201]
[1770837415645,2.79221106,80.197,80.157,2.94014201]
[1770837416172,2.79221106,80.197,80.156,43.66485352]
[1770837416173,52.92,80.2,80.161,2.94014201]
[1770837416354,12.81027126,80.19,80.157,2.94014201]
[1770837416667,2.79221106,80.189,80.157,2.94014201]
[1770837416856,2.79221106,80.199,80.157,2.94014201]
[1770837417458,52.92,80.2,80.161,2.94014201]
[1770837418551,52.92,80.2,80.163,2.94014201]
[1770837418757,15.60248232,80.22,80.171,2.94014201]
[1770837419054,2.79221106,80.219,80.171,2.94014201]
[1770837419260,2.79221106,80.225,80.181,2.94014201]
[1770837419662,52.94,80.226,80.181,2.94014201]
[1770837419959,52.94,80.226,80.191,2.94014201]
[1770837420360,2.79221106,80.225,80.191,2.94014201]
[1770837420967,2.79221106,80.235,80.193,2.94014201]
[1770837421155,52.94,80.238,80.201,2.94014201]
[1770837421349,15.25425696,80.244,80.201,2.94014201]
[1770837421571,2.79221106,80.243,80.201,2.94014201]
[1770837421967,2.79221106,80.229,80.196,48.26]
[1770837422165,2.79221106,80.229,80.196,51.20014201]
[1770837422374,2.79221106,80.219,80.192,12.47007182]
[1770837422750,2.79221106,80.209,80.192,12.47007182]
[1770837422954,2.79221106,80.209,80.184,48.28]
[1770837422955,2.79221106,80.209,80.185,12.47116044]
[1770837423756,2.79221106,80.229,80.19,12.81027126]
[1770837424056,2.79221106,80.238,80.191,2.94014201]
[1770837424255,2.79221106,80.238,80.192,48.3]
[1770837424467,2.79221106,80.238,80.193,2.94014201]
[1770837424668,2.79221106,80.238,80.2,12.81027126]
[1770837424970,2.79221106,80.238,80.201,2.94014201]
[1770837425356,2.79221106,80.238,80.203,2.94014201]
[1770837425875,4.61729252,80.271,80.202,12.46851699]
[1770837425876,2.79221106,80.257,80.211,2.94014201]
[1770837426056,2.79221106,80.257,80.221,2.94014201]
[1770837426256,12.81027126,80.27,80.221,2.94014201]
[1770837426257,2.79221106,80.269,80.221,2.94014201]
[1770837426569,2.79221106,80.277,80.241,2.94014201]
[1770837426773,2.79221106,80.286,80.251,2.94014201]
[1770837427376,2.79221106,80.286,80.253,2.94014201]
[1770837428574,2.79221106,80.305,80.261,2.94014201]
[1770837428765,2.79221106,80.317,80.281,2.94014201]
[1770837428972,2.79221106,80.309,80.271,2.94014201]
[1770837429157,2.79221106,80.333,80.271,2.94014201]
[1770837429356,12.78442629,80.32,80.282,15.39623428]
[1770837429557,12.44895926,80.328,80.271,12.4577992]
[1770837429558,12.78442629,80.31,80.271,12.4577992]
[1770837429761,2.79221106,80.309,80.271,12.4577992]
[1770837429969,2.79221106,80.299,80.271,12.4577992]
[1770837430172,2.79221106,80.289,80.258,12.45981708]
[1770837430967,2.79221106,80.289,80.247,15.40166705]
[1770837431162,52.86,80.299,80.251,2.94014201]
[1770837431357,2.79221106,80.298,80.251,2.94014201]
[1770837432467,2.79221106,80.289,80.253,2.94014201]
[1770837432675,52.84,80.298,80.253,2.94014201]
[1770837432872,12.45376539,80.297,80.253,2.94014201]
[1770837433058,2.79221106,80.296,80.253,2.94014201]
[1770837433573,52.84,80.298,80.271,2.94014201]
[1770837433878,2.79221106,80.306,80.271,2.94014201]
[1770837434274,2.79221106,80.306,80.272,12.45764401]
[1770837434474,2.79221106,80.306,80.273,2.94014201]
[1770837436462,2.79221106,80.306,80.274,12.45733363]
[1770837436669,2.79221106,80.304,80.275,2.94014201]
[1770837436871,15.57663735,80.31,80.275,2.94014201]
[1770837437065,2.79221106,80.32,80.281,2.94014201]
[1770837437573,2.79221106,80.32,80.291,2.94014201]
[1770837438078,2.79221106,80.329,80.291,2.94014201]
[1770837438679,2.79221106,80.327,80.292,12.45454092]
[1770837438875,2.79221106,80.32,80.292,12.45454092]
[1770837439186,2.79221106,80.328,80.284,2.94014201]
[1770837439772,2.79221106,80.319,80.284,2.94014201]
[1770837439970,2.79221106,80.319,80.285,2.94014201]
[1770837440170,2.79221106,80.319,80.284,48.38]
[1770837440171,2.79221106,80.329,80.291,2.94014201]
[1770837440674,3.04699747,80.319,80.283,31.1398428]
[1770837440880,3.04699747,80.319,80.275,12.45709122]
[1770837441064,3.04699747,80.299,80.275,12.45709122]
[1770837441378,3.04699747,80.289,80.262,12.45919613]
[1770837441584,3.04699747,80.299,80.263,3.01226986]
[1770837441788,52.84,80.3,80.263,3.01226986]
[1770837442678,3.04699747,80.289,80.262,12.45919613]
[1770837442873,3.04699747,80.289,80.25,12.78442629]
[1770837442874,3.04699747,80.289,80.254,48.38]
[1770837443081,12.78442629,80.3,80.261,3.01226986]
[1770837443281,52.84,80.304,80.261,3.01226986]
[1770837443466,12.78442629,80.3,80.261,3.01226986]
[1770837443667,15.83142376,80.3,80.261,3.01226986]
[1770837444272,12.78442629,80.29,80.253,12.46059337]
[1770837444484,3.04699747,80.3,80.231,15.47628003]
[1770837444485,12.78442629,80.27,80.231,15.47628003]
[1770837444685,52.84,80.279,80.241,3.01226986]
[1770837444866,12.78442629,80.26,80.229,48.4]
[1770837445068,12.78442629,80.26,80.229,60.86420905]
[1770837445575,12.78442629,80.27,80.231,3.01226986]
[1770837446365,43.58709323,80.299,80.251,3.01226986]
[1770837446567,12.78442629,80.29,80.251,3.01226986]
[1770837446792,12.45500628,80.289,80.252,12.46074864]
[1770837447484,12.78442629,80.28,80.247,12.46137854]
[1770837447787,12.45500628,80.289,80.238,12.46278723]
[1770837447788,12.78442629,80.27,80.238,12.46278723]
[1770837448466,3.08834082,80.269,80.232,51.39327456]
[1770837448672,15.87276711,80.26,80.232,2.97327456]
[1770837448871,3.08834082,80.259,80.225,2.97327456]
[1770837449775,3.08834082,80.269,80.225,2.97327456]
[1770837450092,12.78442629,80.26,80.225,2.97327456]
[1770837450467,3.08834082,80.269,80.225,2.97327456]
[1770837450670,3.08834082,80.259,80.224,12.46509772]
[1770837450862,31.14527401,80.269,80.219,2.97327456]
[1770837450863,3.08834082,80.248,80.219,2.97327456]
[1770837451069,3.08834082,80.257,80.219,2.97327456]
[1770837451286,3.08834082,80.249,80.218,12.46595345]
[1770837451871,3.08834082,80.229,80.191,15.44350189]
[1770837452187,3.08834082,80.219,80.191,12.47022733]
[1770837453083,3.08834082,80.218,80.184,15.44459053]
[1770837453283,3.08834082,80.217,80.184,46.62288046]
[1770837453880,3.08834082,80.217,80.185,2.97327456]
[1770837454481,12.78442629,80.21,80.184,12.47131597]
[1770837454793,12.46603006,80.218,80.134,49.91626146]
[1770837454794,3.08834082,80.199,80.159,2.97327456]
[1770837454978,3.08834082,80.199,80.161,2.97327456]
[1770837455394,3.08834082,80.189,80.16,12.4750499]
[1770837456095,3.08834082,80.197,80.161,2.97327456]
[1770837456299,12.78442629,80.19,80.161,2.97327456]
[1770837456481,12.78442629,80.2,80.161,2.97327456]
[1770837456795,3.08834082,80.199,80.161,2.97327456]
[1770837456979,52.78,80.202,80.162,43.66158528]
[1770837457179,3.08834082,80.199,80.163,2.97327456]
[1770837459200,3.08834082,80.199,80.165,2.97327456]
[1770837459701,3.08834082,80.199,80.142,49.91138066]
[1770837459702,3.08834082,80.179,80.139,2.97327456]
[1770837459909,3.08834082,80.179,80.141,2.97327456]
[1770837460101,55.2277281,80.214,80.14,12.47816321]
[1770837460102,43.62457933,80.23,80.171,2.97327456]
[1770837460278,12.78442629,80.21,80.171,2.97327456]
[1770837460484,12.78442629,80.19,80.16,2.97327456]
[1770837461402,12.47053835,80.189,80.141,2.97327456]
[1770837461699,12.78442629,80.19,80.141,2.97327456]
[1770837462300,15.87276711,80.21,80.171,2.97327456]
[1770837462482,52.78,80.209,80.171,2.97327456]
[1770837463190,55.86834082,80.209,80.171,2.97327456]
[1770837463490,12.46758428,80.208,80.172,12.47318265]
[1770837463799,12.78442629,80.19,80.152,2.97327456]
[1770837463997,3.08834082,80.189,80.152,2.97327456]
[1770837464178,3.08834082,80.189,80.154,2.97327456]
[1770837464384,3.08834082,80.187,80.153,12.47613938]
[1770837464580,3.08834082,80.197,80.16,12.78442629]
[1770837464829,3.08834082,80.195,80.161,2.97327456]
[1770837465310,52.78,80.194,80.161,2.97327456]
[1770837465476,3.08834082,80.194,80.161,2.97327456]
[1770837465682,52.78,80.193,80.163,2.97327456]
[1770837466310,52.78,80.192,80.163,2.97327456]
[1770837468006,3.08834082,80.191,80.154,2.97327456]
[1770837468205,3.08834082,80.179,80.146,12.47722905]
[1770837468505,3.08834082,80.177,80.136,12.47878606]
[1770837468799,3.08834082,80.17,80.14,12.78442629]
[1770837469198,3.08834082,80.17,80.136,43.67575121]
[1770837469394,3.08834082,80.17,80.137,2.97327456]
[1770837469699,15.87276711,80.17,80.137,2.97327456]
[1770837470089,12.78442629,80.16,80.13,0.2]
[1770837470299,3.08834082,80.149,80.13,12.67968532]
[1770837470484,52.82,80.148,80.13,0.2]
[1770837471803,52.82,80.147,80.131,12.47956471]
[1770837472005,2.91550693,80.159,80.131,12.47956471]
[1770837472189,12.47551679,80.157,80.13,0.2]
[1770837472384,2.91550693,80.156,80.13,0.2]
[1770837472592,2.91550693,80.149,80.13,0.2]
[1770837472792,52.84,80.148,80.13,0.2]
[1770837473008,2.91550693,80.171,80.13,0.2]
[1770837473204,2.91550693,80.169,80.131,3.00322975]
[1770837474107,2.91550693,80.149,80.13,0.2]
[1770837475009,52.86,80.148,80.13,0.2]
[1770837475794,52.86,80.148,80.13,12.67965062]
[1770837476214,52.88,80.147,80.13,12.67965062]
[1770837476528,2.91550693,80.199,80.141,3.00322975]
[1770837476821,2.91550693,80.199,80.13,106.27755402]
[1770837476822,52.88,80.198,80.161,3.00322975]
[1770837477293,52.88,80.197,80.161,3.00322975]
[1770837477914,52.88,80.197,80.163,3.00322975]
[1770837478224,52.88,80.197,80.17,12.78442629]
[1770837478589,12.46813778,80.205,80.17,12.78442629]
[1770837478904,52.9,80.204,80.171,3.00322975]
[1770837479295,55.81550693,80.204,80.171,3.00322975]
[1770837479495,55.81550693,80.204,80.163,3.00322975]
[1770837479496,2.91550693,80.199,80.163,3.00322975]
[1770837479720,12.46642564,80.216,80.181,3.00322975]
[1770837480018,12.46642564,80.216,80.18,12.78442629]
[1770837480019,52.92,80.215,80.183,3.00322975]
[1770837480218,2.91550693,80.224,80.19,12.78442629]
[1770837480522,52.9,80.223,80.191,3.00322975]
[1770837480726,65.3652531,80.223,80.191,3.00322975]
[1770837480918,2.91550693,80.199,80.16,12.4750499]
[1770837481119,52.9,80.198,80.153,3.00322975]
[1770837481414,2.91550693,80.197,80.153,3.00322975]
[1770837481615,55.81550693,80.196,80.153,3.00322975]
[1770837481818,12.78442629,80.19,80.153,3.00322975]
[1770837482398,2.91550693,80.189,80.149,12.4766635]
[1770837482716,12.78442629,80.18,80.149,12.4766635]
[1770837483009,12.78442629,80.18,80.146,3.00322975]
[1770837483212,2.91550693,80.178,80.14,12.78442629]
[1770837483415,12.78442629,80.17,80.139,12.47831892]
[1770837483827,2.91550693,80.178,80.139,12.47831892]
[1770837483999,2.91550693,80.178,80.14,3.00322975]
[1770837484422,12.4724048,80.177,80.142,3.00322975]
[1770837485017,12.78442629,80.17,80.137,12.47860852]
[1770837485201,46.56892374,80.177,80.138,3.00322975]
[1770837485521,52.92,80.176,80.141,3.00322975]
[1770837485700,2.91550693,80.177,80.141,3.00322975]
[1770837485905,47.32,80.186,80.161,3.00322975]
[1770837486232,47.32,80.186,80.16,12.78442629]
[1770837486233,12.78442629,80.24,80.181,3.00322975]
[1770837486409,12.4629228,80.238,80.202,3.00322975]
[1770837486715,12.4629228,80.238,80.187,15.47392569]
[1770837486716,12.78442629,80.22,80.187,15.47392569]
[1770837486894,12.78442629,80.22,80.187,12.47069594]
[1770837487098,12.78442629,80.2,80.161,3.00322975]
[1770837487418,52.9,80.199,80.162,3.00322975]
[1770837488718,52.9,80.199,80.164,3.00322975]
[1770837488919,12.46913888,80.198,80.164,3.00322975]
[1770837489116,12.82288028,80.2,80.164,3.00322975]
[1770837489312,52.9,80.199,80.164,3.00322975]
[1770837489707,12.82288028,80.19,80.155,3.00322975]
[1770837489907,0.36612922,80.169,80.13,0.2]
[1770837490218,13.1890095,80.16,80.13,0.2]
[1770837490523,12.82288028,80.15,80.13,0.2]
[1770837490708,0.36612922,80.16,80.13,0.2]
[1770837490709,12.47633262,80.152,80.13,0.2]
[1770837491220,0.36882595,80.187,80.132,3.00322975]
[1770837491419,12.82288028,80.18,80.141,3.00322975]
[1770837492440,31.17906762,80.182,80.141,3.00322975]
[1770837492720,52.9,80.183,80.162,12.47473865]
[1770837493019,52.92,80.185,80.163,3.00322975]
[1770837493223,12.47114624,80.186,80.163,3.00322975]
[1770837493403,52.92,80.185,80.163,3.00322975]
[1770837493604,52.92,80.184,80.163,3.00322975]
[1770837494423,52.92,80.184,80.153,3.00322975]
[1770837495012,12.47065001,80.189,80.153,3.00322975]
[1770837495218,37.48828491,80.45,80.151,43.66757743]
[1770837495219,12.46742884,80.209,80.161,3.00322975]
[1770837495406,52.94,80.208,80.171,3.00322975]
[1770837496023,12.46742884,80.209,80.181,3.00322975]
[1770837496524,12.46742884,80.209,80.18,12.82288028]
[1770837496525,12.46742884,80.209,80.183,3.00322975]
[1770837496700,0.38424164,80.234,80.183,3.00322975]
[1770837496907,12.82288028,80.23,80.191,3.00322975]
[1770837497728,52.96,80.229,80.191,3.00322975]
[1770837498701,12.46447624,80.228,80.192,12.47007182]
[1770837499013,12.82288028,80.24,80.193,3.00322975]
[1770837499310,12.46251792,80.241,80.201,3.00322975]
[1770837499907,12.82288028,80.23,80.201,3.00322975]
[1770837501014,12.82288028,80.23,80.203,3.08206888]
[1770837501220,12.46432088,80.229,80.203,3.08206888]
[1770837501620,12.82288028,80.21,80.18,12.47193813]
[1770837501826,12.82288028,80.21,80.181,3.08206888]
[1770837502033,12.82288028,80.22,80.181,3.08206888]
[1770837503634,12.82288028,80.21,80.181,3.08206888]
[1770837504015,43.63056133,80.219,80.183,3.08206888]
[1770837504941,53.02,80.218,80.191,3.08206888]
[1770837505727,12.82288028,80.21,80.181,3.08206888]
[1770837505930,12.82288028,80.21,80.172,3.08206888]
[1770837506113,53.44765675,80.209,80.172,3.08206888]
[1770837506434,53.04,80.209,80.172,3.08206888]
[1770837507115,12.82288028,80.2,80.166,12.47406061]
[1770837507447,12.82288028,80.18,80.152,2.91169963]
[1770837507729,53.04,80.179,80.152,2.91169963]
[1770837508123,12.47224924,80.178,80.152,2.91169963]
[1770837508429,53.04,80.177,80.154,2.91169963]
[1770837509033,53.04,80.177,80.148,12.47684089]
[1770837509224,12.82288028,80.17,80.145,2.91169963]
[1770837509424,53.06,80.171,80.145,2.91169963]
[1770837509732,12.82288028,80.17,80.134,2.91169963]
[1770837509931,53.06,80.171,80.134,2.91169963]
[1770837510114,53.06,80.171,80.136,2.91169963]
[1770837510317,12.82288028,80.17,80.136,2.91169963]
[1770837511116,53.06,80.171,80.136,2.91169963]
[1770837511733,12.82288028,80.17,80.136,2.91169963]
[1770837512324,12.82288028,80.18,80.138,2.91169963]
[1770837512526,53.08,80.182,80.141,2.91169963]
[1770837512724,12.82288028,80.18,80.141,2.91169963]
[1770837513414,63.20288028,80.18,80.141,2.91169963]
[1770837514035,12.82288028,80.16,80.132,2.91169963]
[1770837514227,12.47676203,80.149,80.13,0.2]
[1770837515642,12.47831892,80.139,80.112,2.91169963]
[1770837515844,12.82288028,80.12,80.11,0.1]
[1770837516220,12.82288028,80.12,80.082,3.11169963]
[1770837516627,43.67411622,80.139,80.082,3.11169963]
[1770837516836,12.82288028,80.12,80.082,3.11169963]
[1770837517422,54.52319585,80.151,80.093,3.11169963]
[1770837517423,12.47878606,80.136,80.093,3.11169963]
[1770837517613,65.55755157,80.144,80.101,3.11169963]
[1770837517825,12.47755157,80.144,80.101,3.11169963]
[1770837518034,53.08,80.163,80.121,3.11169963]
[1770837518333,12.82288028,80.15,80.121,3.11169963]
[1770837518536,12.82288028,80.16,80.121,3.11169963]
[1770837519642,12.47520552,80.159,80.123,3.11169963]
[1770837520423,12.82288028,80.15,80.123,3.11169963]
[1770837520737,43.66321934,80.159,80.123,3.11169963]
[1770837520738,12.47520552,80.159,80.123,3.11169963]
[1770837520925,12.82288028,80.16,80.123,3.11169963]